[Event "Titled Tuesday Blitz February 22 Late 2022"]
[White "Jacobson, Aaron"]
[Black "Zlatin, Alexander"]
[WhiteFideId "2089912"]
[BlackFideId "2810549"]
[WhiteElo "2265"]
[BlackElo "2228"]
[Result "1-0"]
[Round "06"]
[TimeControl "180+1"]
[Date "2022.02.23"]
[WhiteClock "0:00:45"]
[BlackClock "0:00:01"]

1. e4 {[%clk 0:02:59]}  e5 {[%clk 0:02:55]} 2. Nc3 {[%clk 0:02:53]}  Nf6 {[%clk 0:02:54]} 3. d4 {[%clk 0:02:53]}  exd4 {[%clk 0:02:54]} 4. Qxd4 {[%clk 0:02:54]}  Nc6 {[%clk 0:02:54]} 5. Qd3 {[%clk 0:02:53]}  Bb4 {[%clk 0:02:54]} 6. Bd2 {[%clk 0:02:53]}  O-O {[%clk 0:02:53]} 7. O-O-O {[%clk 0:02:54]}  Re8 {[%clk 0:02:53]} 8. Nge2 {[%clk 0:02:54]}  d6 {[%clk 0:02:51]} 9. Bg5 {[%clk 0:02:54]}  Ne5 {[%clk 0:02:44]} 10. Qg3 {[%clk 0:02:49]}  Be6 {[%clk 0:02:09]} 11. f4 {[%clk 0:02:45]}  Nc6 {[%clk 0:01:44]} 12. f5 {[%clk 0:02:34]}  Bc4 {[%clk 0:01:43]} 13. Qh4 {[%clk 0:01:32]}  Bxe2 {[%clk 0:01:32]} 14. Nxe2 {[%clk 0:01:25]}  Bc5 {[%clk 0:01:07]} 15. Ng3 {[%clk 0:01:08]}  h6 {[%clk 0:00:51]} 16. Bxf6 {[%clk 0:01:07]}  Qxf6 {[%clk 0:00:52]} 17. Qxf6 {[%clk 0:01:08]}  gxf6 {[%clk 0:00:53]} 18. Nh5 {[%clk 0:01:05]}  Kh8 {[%clk 0:00:21]} 19. Nxf6 {[%clk 0:01:04]}  Re5 {[%clk 0:00:21]} 20. Bd3 {[%clk 0:00:59]}  a5 {[%clk 0:00:15]} 21. c3 {[%clk 0:00:58]}  a4 {[%clk 0:00:15]} 22. Ng4 {[%clk 0:00:55]}  h5 {[%clk 0:00:10]} 23. Nxe5 {[%clk 0:00:55]}  dxe5 {[%clk 0:00:11]} 24. Bb5 {[%clk 0:00:54]}  Na5 {[%clk 0:00:08]} 25. Rd7 {[%clk 0:00:55]}  c6 {[%clk 0:00:06]} 26. Bd3 {[%clk 0:00:53]}  Kg7 {[%clk 0:00:05]} 27. f6+ {[%clk 0:00:52]}  Kxf6 {[%clk 0:00:03]} 28. Rf1+ {[%clk 0:00:53]}  Ke6 {[%clk 0:00:04]} 29. Rdxf7 {[%clk 0:00:50]}  Be3+ {[%clk 0:00:02]} 30. Kc2 {[%clk 0:00:51]}  Bg5 {[%clk 0:00:03]} 31. R1f5 {[%clk 0:00:46]}  Rg8 {[%clk 0:00:01]} 32. b4 {[%clk 0:00:44]}  axb3+ {[%clk 0:00:01]} 33. axb3 {[%clk 0:00:45]}  b5 {[%clk 0:00:01]} 34. b4 {[%clk 0:00:45]} 1-0


[Site "https://www.chess.com"]

[Event "Titled Tuesday Blitz February 22 Late 2022"]
[White "Janaszak, Dawid"]
[Black "Farmani Anosheh, Armin"]
[WhiteFideId "1119206"]
[BlackFideId "24613240"]
[WhiteElo "2199"]
[BlackElo "2289"]
[Result "1-0"]
[Round "06"]
[TimeControl "180+1"]
[Date "2022.02.23"]
[WhiteClock "0:01:03"]
[BlackClock "0:00:18"]

1. e4 {[%clk 0:03:00]}  c5 {[%clk 0:03:00]} 2. Nc3 {[%clk 0:03:00]}  Nc6 {[%clk 0:02:59]} 3. Bb5 {[%clk 0:02:56]}  Nd4 {[%clk 0:02:58]} 4. Nf3 {[%clk 0:02:55]}  a6 {[%clk 0:02:35]} 5. Bd3 {[%clk 0:02:53]}  g6 {[%clk 0:02:31]} 6. b4 {[%clk 0:02:48]}  cxb4 {[%clk 0:02:20]} 7. Nd5 {[%clk 0:02:43]}  Bg7 {[%clk 0:02:01]} 8. Rb1 {[%clk 0:02:28]}  a5 {[%clk 0:02:00]} 9. a3 {[%clk 0:02:24]}  e6 {[%clk 0:01:57]} 10. Ne3 {[%clk 0:02:16]}  Nxf3+ {[%clk 0:01:53]} 11. Qxf3 {[%clk 0:02:16]}  Ne7 {[%clk 0:01:52]} 12. axb4 {[%clk 0:02:12]}  a4 {[%clk 0:01:53]} 13. Ba3 {[%clk 0:02:10]}  O-O {[%clk 0:01:50]} 14. b5 {[%clk 0:02:10]}  Re8 {[%clk 0:01:46]} 15. O-O {[%clk 0:02:07]}  f5 {[%clk 0:01:34]} 16. c4 {[%clk 0:02:01]}  fxe4 {[%clk 0:01:25]} 17. Bxe4 {[%clk 0:01:57]}  Nf5 {[%clk 0:01:24]} 18. Nxf5 {[%clk 0:01:44]}  gxf5 {[%clk 0:01:19]} 19. Bxb7 {[%clk 0:01:41]}  Bxb7 {[%clk 0:01:19]} 20. Qxb7 {[%clk 0:01:41]}  Bd4 {[%clk 0:01:14]} 21. c5 {[%clk 0:01:24]}  Qf6 {[%clk 0:00:57]} 22. Qxd7 {[%clk 0:01:18]}  Re7 {[%clk 0:00:52]} 23. Qc6 {[%clk 0:01:17]}  Rd8 {[%clk 0:00:49]} 24. b6 {[%clk 0:01:17]}  Rg7 {[%clk 0:00:49]} 25. b7 {[%clk 0:01:14]}  Qe5 {[%clk 0:00:39]} 26. Qc8 {[%clk 0:01:09]}  Qd5 {[%clk 0:00:20]} 27. Qxd8+ {[%clk 0:01:03]}  Qxd8 {[%clk 0:00:18]} 28. b8=Q {[%clk 0:01:03]} 1-0


[Site "https://www.chess.com"]

[Event "Titled Tuesday Blitz February 22 Late 2022"]
[White "Jimenez Almeida, Luis David"]
[Black "Gracia Alvarez, Gerardo Antonio"]
[WhiteFideId "22242244"]
[BlackFideId "5109124"]
[WhiteElo "2092"]
[BlackElo "2139"]
[Result "0-1"]
[Round "06"]
[TimeControl "180+1"]
[Date "2022.02.23"]
[WhiteClock "0:00:04"]
[BlackClock "0:00:10"]

1. d4 {[%clk 0:02:55]}  Nf6 {[%clk 0:02:59]} 2. Nf3 {[%clk 0:02:55]}  g6 {[%clk 0:02:59]} 3. Bg5 {[%clk 0:02:55]}  Bg7 {[%clk 0:02:58]} 4. Nbd2 {[%clk 0:02:55]}  c5 {[%clk 0:02:57]} 5. e3 {[%clk 0:02:55]}  cxd4 {[%clk 0:02:51]} 6. exd4 {[%clk 0:02:55]}  h6 {[%clk 0:02:49]} 7. Bh4 {[%clk 0:02:54]}  O-O {[%clk 0:02:44]} 8. c3 {[%clk 0:02:53]}  d6 {[%clk 0:02:44]} 9. Be2 {[%clk 0:02:53]}  b6 {[%clk 0:02:40]} 10. O-O {[%clk 0:02:53]}  Bb7 {[%clk 0:02:41]} 11. a4 {[%clk 0:02:52]}  a6 {[%clk 0:02:41]} 12. Re1 {[%clk 0:02:52]}  Nbd7 {[%clk 0:02:41]} 13. h3 {[%clk 0:02:50]}  Nh5 {[%clk 0:02:35]} 14. Nh2 {[%clk 0:02:40]}  Nf4 {[%clk 0:02:31]} 15. Bf3 {[%clk 0:02:36]}  Bxf3 {[%clk 0:02:29]} 16. Qxf3 {[%clk 0:02:33]}  g5 {[%clk 0:02:28]} 17. Bg3 {[%clk 0:02:31]}  e5 {[%clk 0:02:25]} 18. Bxf4 {[%clk 0:02:23]}  gxf4 {[%clk 0:02:24]} 19. dxe5 {[%clk 0:02:15]}  Nxe5 {[%clk 0:02:16]} 20. Qd5 {[%clk 0:02:11]}  Qe7 {[%clk 0:02:04]} 21. Nc4 {[%clk 0:01:59]}  Rad8 {[%clk 0:01:52]} 22. Nxb6 {[%clk 0:01:54]}  Qg5 {[%clk 0:01:52]} 23. Nc4 {[%clk 0:01:42]}  Rfe8 {[%clk 0:01:37]} 24. Nd2 {[%clk 0:01:19]}  Qg6 {[%clk 0:01:21]} 25. Qe4 {[%clk 0:01:13]}  Nd3 {[%clk 0:01:21]} 26. Qxg6 {[%clk 0:01:05]}  fxg6 {[%clk 0:01:21]} 27. Rxe8+ {[%clk 0:00:57]}  Rxe8 {[%clk 0:01:21]} 28. Rb1 {[%clk 0:00:50]}  Re2 {[%clk 0:01:17]} 29. Nhf1 {[%clk 0:00:41]}  Nxf2 {[%clk 0:01:05]} 30. Nf3 {[%clk 0:00:34]}  Nd3 {[%clk 0:00:58]} 31. N1d2 {[%clk 0:00:34]}  g5 {[%clk 0:00:49]} 32. Nc4 {[%clk 0:00:24]}  d5 {[%clk 0:00:44]} 33. Ncd2 {[%clk 0:00:20]}  h5 {[%clk 0:00:43]} 34. Nf1 {[%clk 0:00:13]}  g4 {[%clk 0:00:39]} 35. hxg4 {[%clk 0:00:13]}  hxg4 {[%clk 0:00:39]} 36. N3d2 {[%clk 0:00:14]}  Bh6 {[%clk 0:00:34]} 37. b4 {[%clk 0:00:12]}  f3 {[%clk 0:00:34]} 38. Nxf3 {[%clk 0:00:08]}  gxf3 {[%clk 0:00:33]} 39. gxf3 {[%clk 0:00:08]}  Nf4 {[%clk 0:00:31]} 40. b5 {[%clk 0:00:08]}  Nh3+ {[%clk 0:00:28]} 41. Kh1 {[%clk 0:00:08]}  axb5 {[%clk 0:00:17]} 42. axb5 {[%clk 0:00:09]}  Bf4 {[%clk 0:00:16]} 43. b6 {[%clk 0:00:10]}  Bb8 {[%clk 0:00:16]} 44. b7 {[%clk 0:00:10]}  Kf7 {[%clk 0:00:15]} 45. Rb5 {[%clk 0:00:08]}  Nf2+ {[%clk 0:00:13]} 46. Kg2 {[%clk 0:00:06]}  Nd3+ {[%clk 0:00:14]} 47. Kh3 {[%clk 0:00:06]}  Nf4+ {[%clk 0:00:12]} 48. Kg4 {[%clk 0:00:06]}  Rg2+ {[%clk 0:00:12]} 49. Kf5 {[%clk 0:00:06]}  Rf2 {[%clk 0:00:11]} 50. Ne3 {[%clk 0:00:05]}  Rxf3 {[%clk 0:00:11]} 51. Ng4 {[%clk 0:00:04]}  Ne6# {[%clk 0:00:10]} 0-1


[Site "https://www.chess.com"]

[Event "Titled Tuesday Blitz February 22 Late 2022"]
[White "Karas, Marek"]
[Black "Colas, Joshua"]
[WhiteFideId "14928558"]
[BlackFideId "2044447"]
[WhiteElo "2270"]
[BlackElo "2347"]
[Result "1-0"]
[Round "06"]
[TimeControl "180+1"]
[Date "2022.02.23"]
[WhiteClock "0:01:41"]
[BlackClock "0:00:03"]

1. c4 {[%clk 0:02:59]}  e5 {[%clk 0:02:59]} 2. Nc3 {[%clk 0:02:59]}  Nc6 {[%clk 0:02:59]} 3. Nf3 {[%clk 0:02:59]}  Bc5 {[%clk 0:02:57]} 4. e3 {[%clk 0:02:57]}  d6 {[%clk 0:02:55]} 5. a3 {[%clk 0:02:56]}  a5 {[%clk 0:02:53]} 6. Be2 {[%clk 0:02:48]}  Nge7 {[%clk 0:02:44]} 7. d4 {[%clk 0:02:47]}  exd4 {[%clk 0:02:36]} 8. exd4 {[%clk 0:02:48]}  Ba7 {[%clk 0:02:37]} 9. O-O {[%clk 0:02:46]}  O-O {[%clk 0:02:34]} 10. Bg5 {[%clk 0:02:41]}  Bg4 {[%clk 0:02:21]} 11. d5 {[%clk 0:02:32]}  Bxf3 {[%clk 0:02:18]} 12. Bxf3 {[%clk 0:02:33]}  Ne5 {[%clk 0:02:17]} 13. Be2 {[%clk 0:02:31]}  f6 {[%clk 0:02:17]} 14. Bh4 {[%clk 0:02:28]}  Nf5 {[%clk 0:02:18]} 15. Bg3 {[%clk 0:02:27]}  Nxg3 {[%clk 0:02:18]} 16. hxg3 {[%clk 0:02:27]}  Re8 {[%clk 0:02:12]} 17. Nb5 {[%clk 0:02:27]}  Bb6 {[%clk 0:02:12]} 18. Nd4 {[%clk 0:02:25]}  Bxd4 {[%clk 0:02:10]} 19. Qxd4 {[%clk 0:02:25]}  Qd7 {[%clk 0:02:10]} 20. Rfe1 {[%clk 0:02:24]}  a4 {[%clk 0:02:09]} 21. f4 {[%clk 0:02:18]}  Ng4 {[%clk 0:02:06]} 22. Bxg4 {[%clk 0:02:11]}  Qxg4 {[%clk 0:02:07]} 23. Kh2 {[%clk 0:02:09]}  b6 {[%clk 0:02:07]} 24. Qd2 {[%clk 0:02:07]}  h5 {[%clk 0:02:05]} 25. Rxe8+ {[%clk 0:02:05]}  Rxe8 {[%clk 0:02:05]} 26. Re1 {[%clk 0:02:06]}  Rxe1 {[%clk 0:01:55]} 27. Qxe1 {[%clk 0:02:07]}  h4 {[%clk 0:01:56]} 28. Qe8+ {[%clk 0:02:03]}  Kh7 {[%clk 0:01:56]} 29. Qe4+ {[%clk 0:02:03]}  f5 {[%clk 0:01:56]} 30. Qf3 {[%clk 0:02:02]}  Qxf3 {[%clk 0:00:50]} 31. gxf3 {[%clk 0:02:01]}  hxg3+ {[%clk 0:00:51]} 32. Kxg3 {[%clk 0:02:00]}  Kh6 {[%clk 0:00:50]} 33. Kh4 {[%clk 0:01:59]}  Kg6 {[%clk 0:00:48]} 34. Kg3 {[%clk 0:01:59]}  Kh5 {[%clk 0:00:48]} 35. Kh3 {[%clk 0:01:59]}  g5 {[%clk 0:00:26]} 36. fxg5 {[%clk 0:01:57]}  Kxg5 {[%clk 0:00:26]} 37. Kg3 {[%clk 0:01:57]}  f4+ {[%clk 0:00:25]} 38. Kh3 {[%clk 0:01:57]}  Kh5 {[%clk 0:00:22]} 39. Kg2 {[%clk 0:01:54]}  Kh4 {[%clk 0:00:22]} 40. Kh2 {[%clk 0:01:55]}  b5 {[%clk 0:00:21]} 41. cxb5 {[%clk 0:01:52]}  Kg5 {[%clk 0:00:21]} 42. Kh3 {[%clk 0:01:53]}  Kf5 {[%clk 0:00:21]} 43. Kh4 {[%clk 0:01:52]}  Ke5 {[%clk 0:00:20]} 44. Kg4 {[%clk 0:01:53]}  Kxd5 {[%clk 0:00:21]} 45. Kxf4 {[%clk 0:01:53]}  Kd4 {[%clk 0:00:17]} 46. Kg5 {[%clk 0:01:48]}  d5 {[%clk 0:00:15]} 47. f4 {[%clk 0:01:48]}  Kc4 {[%clk 0:00:09]} 48. f5 {[%clk 0:01:48]}  d4 {[%clk 0:00:09]} 49. Kf4 {[%clk 0:01:44]}  Kd5 {[%clk 0:00:02]} 50. f6 {[%clk 0:01:40]}  Ke6 {[%clk 0:00:02]} 51. Ke4 {[%clk 0:01:40]}  Kxf6 {[%clk 0:00:02]} 52. Kxd4 {[%clk 0:01:41]}  Ke6 {[%clk 0:00:03]} 53. Kc5 {[%clk 0:01:41]} 1-0


[Site "https://www.chess.com"]

[Event "Titled Tuesday Blitz February 22 Late 2022"]
[White "Karttunen, Mika"]
[Black "Shahaliyev, Ismayil"]
[WhiteFideId "502081"]
[BlackFideId "13406388"]
[WhiteElo "2343"]
[BlackElo "2105"]
[Result "1-0"]
[Round "06"]
[TimeControl "180+1"]
[Date "2022.02.23"]
[WhiteClock "0:00:08"]
[BlackClock "0:00:04"]

1. e4 {[%clk 0:03:00]}  e6 {[%clk 0:02:28]} 2. d4 {[%clk 0:03:00]}  d5 {[%clk 0:02:29]} 3. Nc3 {[%clk 0:02:59]}  Bb4 {[%clk 0:02:28]} 4. e5 {[%clk 0:02:59]}  c5 {[%clk 0:02:28]} 5. a3 {[%clk 0:02:59]}  Bxc3+ {[%clk 0:02:29]} 6. bxc3 {[%clk 0:02:59]}  Ne7 {[%clk 0:02:29]} 7. h4 {[%clk 0:03:00]}  Qa5 {[%clk 0:02:21]} 8. Bd2 {[%clk 0:02:59]}  Nbc6 {[%clk 0:02:19]} 9. h5 {[%clk 0:02:55]}  Qa4 {[%clk 0:02:19]} 10. h6 {[%clk 0:02:54]}  gxh6 {[%clk 0:02:18]} 11. Nf3 {[%clk 0:02:07]}  cxd4 {[%clk 0:02:17]} 12. Rh4 {[%clk 0:02:07]}  Nf5 {[%clk 0:02:17]} 13. Rf4 {[%clk 0:02:07]}  h5 {[%clk 0:02:04]} 14. Bd3 {[%clk 0:02:02]}  Rg8 {[%clk 0:02:02]} 15. Bxf5 {[%clk 0:01:57]}  exf5 {[%clk 0:02:03]} 16. cxd4 {[%clk 0:00:55]}  Rxg2 {[%clk 0:01:56]} 17. c3 {[%clk 0:00:55]}  Qc4 {[%clk 0:01:52]} 18. Qe2 {[%clk 0:00:52]}  Be6 {[%clk 0:01:30]} 19. Qxc4 {[%clk 0:00:39]}  dxc4 {[%clk 0:01:31]} 20. Rh4 {[%clk 0:00:40]}  O-O-O {[%clk 0:00:59]} 21. Rxh5 {[%clk 0:00:39]}  Rdg8 {[%clk 0:01:00]} 22. Ke2 {[%clk 0:00:38]}  Ne7 {[%clk 0:00:43]} 23. Rxh7 {[%clk 0:00:30]}  Nd5 {[%clk 0:00:42]} 24. Rah1 {[%clk 0:00:29]}  Kd7 {[%clk 0:00:40]} 25. Rh8 {[%clk 0:00:28]}  Rxh8 {[%clk 0:00:23]} 26. Rxh8 {[%clk 0:00:27]}  f4 {[%clk 0:00:22]} 27. Kf1 {[%clk 0:00:26]}  Rg7 {[%clk 0:00:21]} 28. Rh5 {[%clk 0:00:18]}  Bg4 {[%clk 0:00:17]} 29. Rg5 {[%clk 0:00:18]}  Rxg5 {[%clk 0:00:08]} 30. Nxg5 {[%clk 0:00:18]}  Bh5 {[%clk 0:00:09]} 31. Ne4 {[%clk 0:00:17]}  Kc6 {[%clk 0:00:07]} 32. Nd6 {[%clk 0:00:17]}  b5 {[%clk 0:00:07]} 33. Kg2 {[%clk 0:00:15]}  a5 {[%clk 0:00:07]} 34. Kh3 {[%clk 0:00:15]}  b4 {[%clk 0:00:08]} 35. axb4 {[%clk 0:00:15]}  axb4 {[%clk 0:00:09]} 36. Nxc4 {[%clk 0:00:14]}  bxc3 {[%clk 0:00:09]} 37. Bc1 {[%clk 0:00:14]}  Kb5 {[%clk 0:00:09]} 38. Nd6+ {[%clk 0:00:13]}  Ka4 {[%clk 0:00:09]} 39. Kh4 {[%clk 0:00:13]}  Be2 {[%clk 0:00:09]} 40. Nxf7 {[%clk 0:00:13]}  Kb3 {[%clk 0:00:09]} 41. e6 {[%clk 0:00:12]}  Kc2 {[%clk 0:00:08]} 42. Ba3 {[%clk 0:00:13]}  Kb3 {[%clk 0:00:07]} 43. Bc1 {[%clk 0:00:07]}  Kc2 {[%clk 0:00:07]} 44. Ba3 {[%clk 0:00:06]}  Kb1 {[%clk 0:00:07]} 45. Kg5 {[%clk 0:00:05]}  f3 {[%clk 0:00:07]} 46. Ne5 {[%clk 0:00:05]}  c2 {[%clk 0:00:06]} 47. Nc6 {[%clk 0:00:04]}  c1=Q+ {[%clk 0:00:05]} 48. Bxc1 {[%clk 0:00:04]}  Kxc1 {[%clk 0:00:06]} 49. e7 {[%clk 0:00:05]}  Nxe7 {[%clk 0:00:06]} 50. Nxe7 {[%clk 0:00:05]}  Kd2 {[%clk 0:00:06]} 51. Kf4 {[%clk 0:00:05]}  Kd3 {[%clk 0:00:04]} 52. d5 {[%clk 0:00:05]}  Kd4 {[%clk 0:00:04]} 53. d6 {[%clk 0:00:06]}  Bb5 {[%clk 0:00:05]} 54. Ng6 {[%clk 0:00:04]}  Kd5 {[%clk 0:00:04]} 55. Ne5 {[%clk 0:00:03]}  Kxd6 {[%clk 0:00:04]} 56. Nxf3 {[%clk 0:00:04]}  Ke7 {[%clk 0:00:04]} 57. Nd4 {[%clk 0:00:04]}  Bd7 {[%clk 0:00:04]} 58. Ke5 {[%clk 0:00:05]}  Kf7 {[%clk 0:00:04]} 59. f4 {[%clk 0:00:05]}  Bg4 {[%clk 0:00:04]} 60. Nc6 {[%clk 0:00:05]}  Bh3 {[%clk 0:00:04]} 61. Nd4 {[%clk 0:00:06]}  Bg4 {[%clk 0:00:04]} 62. Nf5 {[%clk 0:00:06]}  Bh3 {[%clk 0:00:03]} 63. Ne3 {[%clk 0:00:06]}  Ke7 {[%clk 0:00:03]} 64. Nd5+ {[%clk 0:00:06]}  Kf7 {[%clk 0:00:04]} 65. Nf6 {[%clk 0:00:07]}  Bg2 {[%clk 0:00:04]} 66. Ne4 {[%clk 0:00:08]}  Bh3 {[%clk 0:00:04]} 67. Ng5+ {[%clk 0:00:08]} 1-0


[Site "https://www.chess.com"]

[Event "Titled Tuesday Blitz February 22 Late 2022"]
[White "Kobalia, Mikhail"]
[Black "Avila Pavas, Santiago"]
[WhiteFideId "4119150"]
[BlackFideId "4437128"]
[WhiteElo "2667"]
[BlackElo "2242"]
[Result "1-0"]
[Round "06"]
[TimeControl "180+1"]
[Date "2022.02.22"]
[WhiteClock "0:00:19"]
[BlackClock "0:00:01"]

1. e4 {[%clk 0:03:00]}  Nf6 {[%clk 0:03:00]} 2. e5 {[%clk 0:03:00]}  Nd5 {[%clk 0:03:01]} 3. d4 {[%clk 0:03:00]}  d6 {[%clk 0:03:02]} 4. c4 {[%clk 0:02:58]}  Nb6 {[%clk 0:03:02]} 5. f4 {[%clk 0:02:58]}  dxe5 {[%clk 0:03:02]} 6. fxe5 {[%clk 0:02:59]}  Nc6 {[%clk 0:03:03]} 7. Be3 {[%clk 0:02:58]}  Bf5 {[%clk 0:03:03]} 8. Nc3 {[%clk 0:02:57]}  e6 {[%clk 0:03:04]} 9. Be2 {[%clk 0:02:56]}  Be7 {[%clk 0:03:04]} 10. Nf3 {[%clk 0:02:56]}  O-O {[%clk 0:03:04]} 11. O-O {[%clk 0:02:55]}  f6 {[%clk 0:03:05]} 12. exf6 {[%clk 0:02:55]}  Bxf6 {[%clk 0:03:06]} 13. Qd2 {[%clk 0:02:55]}  Qe8 {[%clk 0:03:07]} 14. Rad1 {[%clk 0:02:53]}  Rd8 {[%clk 0:03:07]} 15. Qc1 {[%clk 0:02:54]}  Bg4 {[%clk 0:02:47]} 16. Ne4 {[%clk 0:02:51]}  Be7 {[%clk 0:02:20]} 17. a3 {[%clk 0:02:46]}  Qg6 {[%clk 0:02:14]} 18. Ng3 {[%clk 0:02:26]}  Bf6 {[%clk 0:01:55]} 19. Bd3 {[%clk 0:02:16]}  Qe8 {[%clk 0:01:47]} 20. Qb1 {[%clk 0:02:13]}  g6 {[%clk 0:01:19]} 21. Ne4 {[%clk 0:01:49]}  Bg7 {[%clk 0:01:09]} 22. Neg5 {[%clk 0:01:31]}  Bxf3 {[%clk 0:00:55]} 23. Nxf3 {[%clk 0:01:20]}  Nxd4 {[%clk 0:00:53]} 24. Bxd4 {[%clk 0:01:02]}  Bxd4+ {[%clk 0:00:53]} 25. Kh1 {[%clk 0:01:02]}  Bf6 {[%clk 0:00:47]} 26. Rde1 {[%clk 0:00:55]}  Qd7 {[%clk 0:00:42]} 27. Rd1 {[%clk 0:00:41]}  Qg7 {[%clk 0:00:39]} 28. b4 {[%clk 0:00:39]}  Rd7 {[%clk 0:00:35]} 29. Qb3 {[%clk 0:00:37]}  Rfd8 {[%clk 0:00:34]} 30. c5 {[%clk 0:00:37]}  Nd5 {[%clk 0:00:34]} 31. Rfe1 {[%clk 0:00:33]}  Kh8 {[%clk 0:00:18]} 32. Bc4 {[%clk 0:00:32]}  Nf4 {[%clk 0:00:05]} 33. Rxd7 {[%clk 0:00:30]}  Qxd7 {[%clk 0:00:06]} 34. g3 {[%clk 0:00:29]}  Nd3 {[%clk 0:00:05]} 35. Rxe6 {[%clk 0:00:25]}  Bg7 {[%clk 0:00:04]} 36. Bxd3 {[%clk 0:00:23]}  Qf7 {[%clk 0:00:04]} 37. Bc4 {[%clk 0:00:21]}  Rf8 {[%clk 0:00:01]} 38. Kg2 {[%clk 0:00:20]}  h5 {[%clk 0:00:01]} 39. Re4 {[%clk 0:00:19]}  Qf5 {[%clk 0:00:01]} 40. Rf4 {[%clk 0:00:19]} 1-0


[Site "https://www.chess.com"]

[Event "Titled Tuesday Blitz February 22 Late 2022"]
[White "Kobo, Ori"]
[Black "Hakobyan, Aram"]
[WhiteFideId "2812320"]
[BlackFideId "13306677"]
[WhiteElo "2420"]
[BlackElo "2557"]
[Result "0-1"]
[Round "06"]
[TimeControl "180+1"]
[Date "2022.02.22"]
[WhiteClock "0:00:04"]
[BlackClock "0:00:23"]

1. Nc3 {[%clk 0:03:00]}  d5 {[%clk 0:02:58]} 2. d4 {[%clk 0:03:01]}  Nf6 {[%clk 0:02:59]} 3. Bf4 {[%clk 0:03:00]}  c5 {[%clk 0:02:59]} 4. e4 {[%clk 0:03:00]}  Nxe4 {[%clk 0:02:47]} 5. Nxe4 {[%clk 0:03:00]}  dxe4 {[%clk 0:02:48]} 6. dxc5 {[%clk 0:03:00]}  Qa5+ {[%clk 0:02:48]} 7. c3 {[%clk 0:03:00]}  Qxc5 {[%clk 0:02:48]} 8. Qa4+ {[%clk 0:03:01]}  Nc6 {[%clk 0:02:49]} 9. Qxe4 {[%clk 0:03:01]}  g6 {[%clk 0:02:50]} 10. Nf3 {[%clk 0:03:00]}  Bg7 {[%clk 0:02:50]} 11. Qe3 {[%clk 0:02:56]}  Qxe3+ {[%clk 0:02:45]} 12. Bxe3 {[%clk 0:02:57]}  O-O {[%clk 0:02:45]} 13. Bb5 {[%clk 0:02:55]}  Be6 {[%clk 0:02:37]} 14. O-O {[%clk 0:02:41]}  Bd5 {[%clk 0:02:36]} 15. Rfd1 {[%clk 0:02:38]}  Rfd8 {[%clk 0:02:35]} 16. Rd2 {[%clk 0:02:32]}  a6 {[%clk 0:01:33]} 17. Be2 {[%clk 0:02:27]}  Be6 {[%clk 0:01:27]} 18. Bb6 {[%clk 0:02:15]}  Rxd2 {[%clk 0:01:26]} 19. Nxd2 {[%clk 0:02:16]}  Rc8 {[%clk 0:00:51]} 20. a3 {[%clk 0:02:02]}  Be5 {[%clk 0:00:50]} 21. Rd1 {[%clk 0:01:53]}  Bc7 {[%clk 0:00:51]} 22. Bxc7 {[%clk 0:01:52]}  Rxc7 {[%clk 0:00:51]} 23. Ne4 {[%clk 0:01:44]}  Bb3 {[%clk 0:00:44]} 24. Rd2 {[%clk 0:01:42]}  Kf8 {[%clk 0:00:45]} 25. Nc5 {[%clk 0:01:38]}  Na5 {[%clk 0:00:42]} 26. Rd8+ {[%clk 0:01:21]}  Kg7 {[%clk 0:00:42]} 27. Nxb3 {[%clk 0:01:13]}  Nxb3 {[%clk 0:00:43]} 28. Bf3 {[%clk 0:01:07]}  Nc5 {[%clk 0:00:43]} 29. Rb8 {[%clk 0:00:46]}  b5 {[%clk 0:00:37]} 30. h4 {[%clk 0:00:13]}  Na4 {[%clk 0:00:35]} 31. Ra8 {[%clk 0:00:12]}  Nxb2 {[%clk 0:00:35]} 32. Rxa6 {[%clk 0:00:13]}  Rxc3 {[%clk 0:00:35]} 33. Ra5 {[%clk 0:00:10]}  Nd3 {[%clk 0:00:22]} 34. Rxb5 {[%clk 0:00:10]}  Rxa3 {[%clk 0:00:22]} 35. Rb1 {[%clk 0:00:05]}  Ra2 {[%clk 0:00:22]} 36. Rf1 {[%clk 0:00:06]}  Rd2 {[%clk 0:00:20]} 37. Be4 {[%clk 0:00:05]}  Nc5 {[%clk 0:00:20]} 38. Bf3 {[%clk 0:00:05]}  h5 {[%clk 0:00:20]} 39. g3 {[%clk 0:00:04]}  Rb2 {[%clk 0:00:21]} 40. Kg2 {[%clk 0:00:04]}  Nd3 {[%clk 0:00:21]} 41. Be4 {[%clk 0:00:04]}  Ne5 {[%clk 0:00:21]} 42. Bd5 {[%clk 0:00:03]}  e6 {[%clk 0:00:21]} 43. Be4 {[%clk 0:00:03]}  Nc4 {[%clk 0:00:22]} 44. Kg1 {[%clk 0:00:02]}  Nd2 {[%clk 0:00:22]} 45. Re1 {[%clk 0:00:03]}  Nc4 {[%clk 0:00:21]} 46. Bg2 {[%clk 0:00:03]}  Rd2 {[%clk 0:00:20]} 47. Bf1 {[%clk 0:00:03]}  Nd6 {[%clk 0:00:20]} 48. Bg2 {[%clk 0:00:03]}  Nf5 {[%clk 0:00:20]} 49. Be4 {[%clk 0:00:03]}  Ne7 {[%clk 0:00:20]} 50. Bg2 {[%clk 0:00:03]}  Kf6 {[%clk 0:00:21]} 51. Be4 {[%clk 0:00:04]}  Rb2 {[%clk 0:00:21]} 52. Re3 {[%clk 0:00:04]}  Kg7 {[%clk 0:00:21]} 53. Rf3 {[%clk 0:00:05]}  Nc8 {[%clk 0:00:21]} 54. Re3 {[%clk 0:00:05]}  Nd6 {[%clk 0:00:22]} 55. Bg2 {[%clk 0:00:05]}  Nf5 {[%clk 0:00:23]} 56. Rd3 {[%clk 0:00:05]}  Rb4 {[%clk 0:00:22]} 57. Rd1 {[%clk 0:00:05]}  Nd4 {[%clk 0:00:23]} 58. Re1 {[%clk 0:00:04]}  Rb2 {[%clk 0:00:23]} 59. Bf1 {[%clk 0:00:04]}  Nf3+ {[%clk 0:00:23]} 0-1


[Site "https://www.chess.com"]